bitfinex/quotes_ETHUSD_20250425
["timestamp","ask_amount","ask_price","bid_price","bid_amount"]
[1745600663638,0.20808357,1804.9,1804.8,6.70698348]
[1745600664130,0.20808357,1804.9,1804.8,6.76238553]
[1745600664311,0.20808357,1804.9,1804.8,6.70698348]
[1745600664506,0.1,1804.9,1804.8,6.70698348]
[1745600665328,0.1,1804.9,1804.8,7.45948348]
[1745600665832,0.20802981,1804.9,1804.8,7.45948348]
[1745600666044,0.1,1804.9,1804.8,7.45948348]
[1745600666255,0.20802981,1804.9,1804.8,7.45948348]
[1745600666544,0.1,1804.9,1804.8,7.51488311]
[1745600666998,0.1,1804.9,1804.8,7.45948348]
[1745600667203,0.1,1804.9,1804.8,1.16620334]
[1745600667402,0.1,1804.9,1804.6,5.541292]
[1745600667403,0.5831,1804.9,1804.7,11.08170656]
[1745600667703,0.1,1804.9,1804.8,6.17653416]
[1745600667931,0.1,1804.9,1804.8,6.93412602]
[1745600669357,0.1,1804.9,1804.8,10.34419657]
[1745600670119,0.1,1804.9,1804.8,10.9495915]
[1745600670355,0.1,1804.9,1804.8,12.54323526]
[1745600673251,1e-08,1804.9,1804.8,12.54323526]
[1745600675573,1e-08,1804.9,1804.8,13.05241277]
[1745600675752,6.5931,1805.7,1805.4,5.53868673]
[1745600675966,6.5931,1805.7,1805.4,6.11903261]
[1745600676150,0.1048667,1805.6,1805.5,6.04779072]
[1745600676464,6.5931,1805.7,1805.5,0.50917751]
[1745600677034,6.5931,1805.7,1805.4,6.11903261]
[1745600677444,6.11,1805.7,1805.6,5.53832521]
[1745600677764,0.10488857,1805.7,1805.6,6.11851257]
[1745600677937,0.10488857,1805.7,1805.6,7.28421358]
[1745600678136,0.5831,1805.9,1805.7,5.53798963]
[1745600678558,0.5831,1805.9,1805.6,1.16570101]
[1745600678868,0.5831,1805.9,1805.5,5.53848366]
[1745600679170,0.5831,1805.9,1805.5,11.07691401]
[1745600679471,0.5831,1805.9,1805.5,5.53841293]
[1745600680450,0.10547518,1805.8,1805.5,5.53841293]
[1745600680773,0.10547518,1805.8,1805.5,12.24259863]
[1745600680956,0.10547518,1805.8,1805.6,5.53820077]
[1745600682170,0.10547518,1805.8,1805.5,6.7041691]
[1745600682374,6.21547518,1805.8,1805.5,6.7041691]
[1745600682869,6.21547518,1805.8,1805.5,5.53841293]
[1745600683238,6.21547518,1805.8,1805.6,5.53816625]
[1745600684247,6.21547518,1805.8,1805.6,5.5381441]
[1745600684447,6.21547518,1805.8,1805.5,5.53842137]
[1745600685179,6.21547518,1805.8,1805.4,1.38474588]
[1745600685478,6.21547518,1805.8,1805.4,5.53882745]
[1745600686179,6.21547518,1805.8,1805.5,5.5385431]
[1745600686354,6.21547518,1805.8,1805.5,5.53841061]
[1745600686555,6.21547518,1805.8,1805.6,5.53831171]
[1745600686755,6.21547518,1805.8,1805.7,5.53801849]
[1745600687478,6.21547518,1805.8,1805.7,6.04554306]
[1745600687984,6.21547518,1805.8,1805.7,11.05454306]
[1745600688350,0.1,1805.9,1805.8,5.53771181]
[1745600688557,0.1,1805.9,1805.8,8.54598318]
[1745600688757,0.20753488,1805.9,1805.8,9.05350775]
[1745600688953,0.1,1805.9,1805.8,8.28480775]
[1745600689181,0.1,1805.9,1805.8,2.16675006]
[1745600689351,0.1,1805.9,1805.8,7.70446187]
[1745600689877,0.1,1805.9,1805.8,2.16675006]
[1745600690181,0.1,1805.9,1805.8,2.23957137]
[1745600690481,0.1,1805.9,1805.8,7.77728318]
[1745600691099,0.1,1805.9,1805.8,8.28417324]
[1745600692104,0.1,1805.9,1805.8,7.70382736]
[1745600692605,6.21,1805.9,1805.8,2.16611555]
[1745600692802,6.21,1805.9,1805.5,9.15036508]
[1745600692988,6.21,1805.9,1805.6,5.53814975]
[1745600693188,6.21,1805.9,1805.7,6.04539144]
[1745600693764,6.21,1805.9,1805.6,5.53814975]
[1745600694067,6.21,1805.9,1805.6,11.07626533]
[1745600694259,6.21,1805.9,1805.7,5.53794501]
[1745600694899,6.21,1805.9,1805.8,0.50763216]
[1745600697068,6.21,1805.9,1805.6,5.53814815]
[1745600697267,0.4831,1805.8,1805.5,11.73868249]
[1745600697467,0.4831,1805.8,1805.6,0.5083613]
[1745600697883,0.4831,1805.8,1805.5,10.54661968]
[1745600698079,0.4831,1805.8,1805.5,16.08503593]
[1745600698277,0.4831,1805.8,1805.5,6.67458683]
[1745600698520,0.4831,1805.8,1805.6,5.53803314]
[1745600698694,0.4831,1805.8,1805.5,5.008]
[1745600698904,0.4831,1805.8,1805.6,0.50866089]
[1745600699585,0.4831,1805.8,1805.5,10.54652815]
[1745600700489,0.4831,1805.8,1805.6,5.5382376]
[1745600700685,0.4831,1805.8,1805.5,16.6652171]
[1745600701030,0.4831,1805.8,1805.6,0.5085901]
[1745600701236,0.4831,1805.8,1805.0,22.7030352]
[1745600701237,6.5931,1805.8,1804.8,7.18963475]
[1745600701388,0.4831,1805.2,1804.1,0.58034588]
[1745600701587,0.4831,1805.0,1804.1,0.58034588]
[1745600701784,0.4831,1804.8,1804.0,0.7526]
[1745600701988,3.0,1804.8,1804.0,0.7526]
[1745600702188,0.4831,1804.7,1804.0,0.7526]
[1745600702433,0.4831,1804.7,1803.9,11.13170264]
[1745600702613,0.4831,1804.5,1804.0,5.54312569]
[1745600702821,3.47212592,1804.5,1804.0,5.54312569]
[1745600703001,0.79874781,1804.5,1804.0,5.54312569]
[1745600703203,0.4831,1804.5,1804.0,5.5430115]
[1745600703447,0.4831,1804.5,1804.0,11.08600822]
[1745600703587,0.4831,1804.5,1803.9,5.58834588]
[1745600703588,0.4831,1804.5,1804.2,5.5424259]
[1745600703794,0.4831,1804.5,1804.2,5.54247128]
[1745600704329,0.4831,1804.5,1804.1,6.1231362]
[1745600704535,0.4831,1804.5,1804.2,5.54249674]
[1745600704904,0.4831,1804.5,1804.1,7.03544982]
[1745600704905,0.4831,1804.5,1804.1,1.4926595]
[1745600705090,0.4831,1804.5,1804.0,5.54307095]
[1745600705297,0.4831,1804.5,1804.0,5.54299477]
[1745600705805,0.4831,1804.5,1803.6,11.0886098]
[1745600706019,0.4831,1804.5,1803.9,0.58034588]
[1745600706225,0.4831,1804.5,1804.2,5.54251003]
[1745600706425,6.5931,1804.5,1804.3,5.54228428]
[1745600706910,6.5931,1804.5,1804.2,5.54244938]
[1745600707320,6.5931,1804.5,1804.2,5.54238976]
[1745600707525,6.5931,1804.5,1804.3,5.54230429]
[1745600707739,6.5931,1804.5,1804.1,5.59034588]
[1745600707940,6.5931,1804.5,1804.3,5.54226685]
[1745600708344,6.11,1804.5,1804.3,11.66452891]
[1745600708503,0.4831,1804.7,1804.4,5.54200842]
[1745600708707,6.5931,1804.9,1804.5,6.12190895]
[1745600708942,6.5931,1804.9,1804.6,5.5413433]
[1745600709240,6.5931,1804.9,1804.6,5.54120091]
[1745600709454,6.5931,1804.9,1804.5,11.13187322]
[1745600709812,5.01,1805.4,1804.8,5.54078014]
[1745600709813,0.4831,1805.1,1804.8,5.54078014]
[1745600709959,0.4831,1805.1,1804.7,6.12141016]
[1745600710132,0.4831,1805.1,1804.8,5.54066528]
[1745600710333,0.4831,1805.1,1804.7,11.66212298]
[1745600710561,0.4831,1805.1,1804.7,11.66213561]
[1745600710860,0.4831,1805.1,1804.7,6.12122218]
[1745600711232,0.4831,1805.1,1804.7,11.66211664]
[1745600711430,0.4831,1805.1,1804.7,6.12122218]
[1745600711618,0.4831,1805.1,1804.5,11.13191008]
[1745600711619,1.14241,1805.1,1804.5,11.13191008]
[1745600711930,1.14241,1805.1,1804.6,5.54136078]
[1745600712340,3.0,1805.0,1804.5,5.59034588]
[1745600712526,3.0,1805.0,1804.6,5.5412631]
[1745600712864,3.0,1805.0,1804.6,5.54119478]
[1745600713355,3.0,1805.0,1804.8,5.54074864]
[1745600713553,0.4831,1805.1,1804.8,5.54074864]
[1745600713962,0.4831,1805.1,1804.7,11.66209316]
[1745600714162,0.4831,1805.1,1804.7,6.12121868]
[1745600714321,0.4831,1805.1,1804.7,5.54086787]
[1745600714521,1.14241,1805.1,1804.5,5.59034588]
[1745600714721,6.11,1805.0,1804.8,5.54072845]
[1745600714955,6.11,1805.0,1804.7,5.54108036]
[1745600715321,6.11,1805.0,1804.7,5.54108716]
[1745600715841,0.4831,1804.9,1804.1,0.55903459]
[1745600716041,6.11,1804.8,1804.3,5.54215656]
[1745600716246,6.11,1804.8,1804.5,5.5416502]
[1745600716553,6.11,1804.8,1804.2,0.58034588]
[1745600716760,0.4831,1804.7,1804.2,8.54231928]
[1745600716956,6.11,1804.6,1804.0,27.16921967]
[1745600717283,0.4831,1804.5,1804.0,10.5502172]
[1745600717955,0.4831,1804.5,1804.0,10.55001363]
[1745600718127,0.4831,1804.5,1804.1,5.54278206]
[1745600718460,0.4831,1804.5,1804.2,5.54242187]
[1745600718862,0.4831,1804.5,1804.1,5.54278206]
[1745600719029,0.4831,1804.5,1804.0,11.13037753]
[1745600719227,0.4831,1804.5,1804.1,5.54277575]
[1745600719630,0.4831,1804.5,1804.1,5.54272629]
[1745600719826,0.4831,1804.5,1804.1,5.54272553]
[1745600720162,0.4831,1804.3,1803.3,0.7714]
[1745600720361,0.4831,1804.3,1803.8,5.54365156]
[1745600720586,0.4831,1804.3,1803.8,5.54364499]
[1745600720734,0.4831,1804.3,1803.9,5.54352173]
[1745600721831,0.4831,1804.3,1803.8,5.54376179]
[1745600722067,1.14241,1804.3,1803.8,5.54364306]
[1745600722366,3.0,1804.2,1803.9,5.54328552]
[1745600722667,3.0,1804.2,1804.0,5.54307816]
[1745600722867,3.0,1804.2,1804.1,6.12327587]
[1745600723179,0.4831,1804.8,1804.5,5.54162626]
[1745600723744,0.4831,1804.8,1804.3,11.13040196]
[1745600723944,0.4831,1804.8,1804.4,5.54190155]
[1745600724944,0.4831,1804.8,1804.3,10.55005608]
[1745600725789,0.4831,1804.8,1804.3,5.008]
[1745600725982,1.14241,1804.8,1804.3,10.55018482]
[1745600726485,6.11,1804.7,1804.3,10.55018482]
[1745600727469,6.11,1804.7,1804.3,5.008]
[1745600727786,0.4831,1804.6,1804.3,5.008]
[1745600727933,0.4831,1804.6,1804.1,5.54271434]
[1745600728138,6.11,1804.5,1804.1,5.54271434]
[1745600728338,6.11,1804.5,1804.2,5.54251927]
[1745600729001,6.11,1804.5,1804.3,5.54218032]
[1745600730475,6.11,1804.5,1804.4,5.54200842]
[1745600731006,6.11,1804.5,1804.4,6.05196526]
[1745600731675,6.45880826,1804.5,1804.4,6.05196526]
[1745600732334,0.34880826,1804.5,1804.4,13.00247087]
[1745600732497,6.11,1805.1,1805.0,5.5401662]
[1745600732816,0.4831,1805.7,1805.4,5.53882111]
[1745600732963,6.11,1805.6,1805.3,5.53902862]
[1745600733159,6.39573194,1805.6,1805.3,5.53902862]
[1745600733388,7.08361513,1805.6,1805.4,5.53888781]
[1745600733589,3.0,1805.5,1805.4,5.53888781]
[1745600734002,3.28841913,1805.5,1805.4,5.53888781]
[1745600734374,3.28841913,1805.5,1805.3,5.53894792]
[1745600734598,3.28841913,1805.5,1805.3,5.53903113]
[1745600734768,3.28841913,1805.5,1805.3,11.07808672]
[1745600735170,3.28841913,1805.5,1805.3,5.53903113]
[1745600735388,3.28841913,1805.5,1805.3,5.53906545]
[1745600735389,4.29704936,1805.5,1805.3,5.53906545]
[1745600736215,3.28841913,1805.5,1805.4,5.53893873]
[1745600736626,0.28841913,1805.5,1805.4,5.53893873]
[1745600736783,0.28841913,1805.5,1805.4,13.60131804]
[1745600736971,6.11,1805.8,1805.7,5.53801849]
[1745600738818,6.35637306,1805.8,1805.7,5.53801849]
[1745600739325,6.11,1805.8,1805.7,5.53801849]
[1745600740378,6.35637306,1805.8,1805.7,5.53801849]
[1745600740885,6.11,1805.8,1805.7,5.53801849]
[1745600741099,6.21,1805.9,1805.8,5.53771181]
[1745600741445,6.11,1806.7,1806.4,0.8176]
[1745600741741,6.11,1806.8,1806.4,10.59707727]
[1745600741916,6.731,1806.8,1806.3,5.53598335]
[1745600742294,6.731,1806.8,1806.6,5.53511919]
[1745600742740,6.11,1806.8,1806.4,5.53572201]
[1745600742897,6.11,1806.8,1806.4,5.53585835]
[1745600743231,0.4831,1806.7,1806.2,5.5363628]
[1745600743406,0.4831,1806.7,1806.2,5.53636185]
[1745600743886,0.4831,1806.7,1806.2,5.53647927]
[1745600744086,1.14241,1806.7,1806.1,5.53659598]
[1745600744324,1.14241,1806.7,1806.2,5.53644319]
[1745600744506,0.4831,1806.6,1806.1,5.53659598]
[1745600744707,0.4831,1806.6,1806.1,5.53664801]
[1745600745333,0.4831,1806.6,1806.2,5.53647812]
[1745600745655,6.11,1806.8,1806.7,5.53495322]
[1745600746129,6.11,1806.8,1806.6,5.53512599]
[1745600746336,6.11,1806.8,1806.5,5.53533369]
[1745600746632,6.11,1806.8,1806.6,5.53514703]
[1745600746939,6.11,1806.8,1806.6,5.53502547]
[1745600747094,6.11,1806.8,1806.4,5.5357215]
[1745600747295,6.11,1806.8,1806.7,5.53495322]
[1745600747591,6.11,1806.8,1806.4,5.002]
[1745600747592,0.4831,1806.7,1806.4,5.002]
[1745600747812,0.4831,1806.7,1806.4,10.53767606]
[1745600748023,6.11,1806.8,1806.5,5.53545901]
[1745600748237,6.11,1806.8,1806.4,10.53766911]
[1745600748439,0.4831,1806.6,1806.2,5.53630778]
[1745600748617,0.4831,1806.6,1806.2,11.07259781]
[1745600748818,0.20717186,1806.5,1806.4,5.53567552]
[1745600749128,6.5931,1806.8,1806.4,5.53566549]
[1745600749445,7.26241,1806.8,1806.3,5.53609823]
[1745600749609,0.22071796,1806.7,1806.3,5.53601207]
[1745600749931,0.22071796,1806.7,1806.5,5.53552224]
[1745600750303,0.22071796,1806.7,1806.4,5.53568496]
[1745600750505,0.22071796,1806.7,1806.5,5.53542906]
[1745600750721,0.22071796,1806.7,1806.4,5.53569099]
[1745600751115,0.22071796,1806.7,1806.5,5.53533982]
[1745600751439,0.22071796,1806.7,1806.4,5.53562482]
[1745600751639,0.90209976,1806.7,1806.4,5.53562482]
[1745600752132,0.90209976,1806.7,1806.4,11.07126959]
[1745600752315,0.90209976,1806.7,1806.4,5.53562482]
[1745600754932,0.90209976,1806.7,1806.2,5.53630597]
[1745600755111,0.90209976,1806.7,1806.1,9.35966412]
[1745600755112,7.01209976,1806.7,1806.1,13.53760196]
[1745600755312,0.4831,1806.5,1806.1,13.53760196]
[1745600755497,0.4831,1806.5,1806.2,5.53631714]
[1745600755914,0.4831,1806.5,1806.2,5.5362621]
[1745600756314,0.4831,1806.5,1806.3,5.53606834]
[1745600756599,0.21973912,1806.4,1806.3,5.53606834]
[1745600756803,6.32973912,1806.4,1806.2,5.53628252]
[1745600757305,6.11,1806.4,1806.3,5.53617892]
[1745600757823,6.32973397,1806.4,1806.3,5.53617892]
[1745600758244,6.11,1806.4,1806.3,5.53617892]
[1745600758536,6.11,1806.4,1806.2,5.53648543]
[1745600758714,6.11,1806.4,1806.2,5.53627775]
[1745600758915,6.11,1806.4,1806.1,10.53761558]
[1745600759125,6.11,1806.4,1806.2,5.53645877]
[1745600759328,0.21970668,1806.3,1806.2,5.53645877]
[1745600759526,0.21970668,1806.3,1806.1,10.53761558]
[1745600759742,6.11,1806.4,1806.1,10.53761558]
[1745600760106,0.2198146,1806.3,1806.1,11.11680962]
[1745600760302,0.2198146,1806.3,1806.2,5.59184888]
[1745600760632,6.11,1806.4,1806.3,5.53617892]
[1745600760835,6.11,1806.4,1806.3,6.11533819]
[1745600761130,6.11,1806.4,1806.3,5.53617892]
[1745600761539,6.11,1806.8,1806.2,6.34998543]
[1745600761736,0.4831,1806.6,1806.2,6.34978563]
[1745600761905,0.4831,1806.6,1806.1,10.53750111]
[1745600762111,0.20080122,1806.5,1806.1,10.53750111]
[1745600762358,0.20080122,1806.5,1806.3,5.53614846]
[1745600762559,0.20080122,1806.5,1806.1,5.58015927]
[1745600762560,0.20080122,1806.5,1806.1,10.53766495]
[1745600762711,0.20080122,1806.5,1805.9,6.30932893]
[1745600762915,0.20080122,1806.5,1806.0,6.04436033]
[1745600763147,0.20080122,1806.5,1806.1,5.53666272]
[1745600763324,0.20080122,1806.5,1806.1,5.53662018]
[1745600763531,0.20080122,1806.5,1806.4,5.53587245]
[1745600763754,0.20080122,1806.5,1806.3,5.53597207]
[1745600766572,0.20080122,1806.5,1806.2,5.53632699]
[1745600766769,0.20080122,1806.5,1806.1,6.9428179]
[1745600766971,0.20080122,1806.5,1806.2,11.07271794]
[1745600767282,0.20080122,1806.5,1806.4,5.53587245]
[1745600767881,6.11,1806.7,1806.5,5.53549084]
[1745600768348,6.11,1806.7,1806.4,5.53587245]
[1745600768549,6.11,1806.7,1806.4,5.53568539]
[1745600768748,6.11,1806.7,1806.3,6.35320683]
[1745600768934,6.76931,1806.7,1806.4,5.53559772]
[1745600769143,6.11,1806.7,1806.5,5.53555931]
[1745600769677,0.4831,1806.8,1806.6,5.53503977]
[1745600769838,6.21,1806.9,1806.6,5.53503977]
[1745600770866,0.18845741,1806.8,1806.6,5.53503977]
[1745600771250,6.21,1806.9,1806.6,5.53503977]
[1745600771578,6.21,1806.9,1806.4,0.8049]
[1745600771740,0.4831,1806.7,1806.2,0.8049]
[1745600771938,6.11,1806.6,1806.3,5.53596839]
[1745600772138,6.11,1806.6,1806.4,5.53582142]
[1745600772139,6.29911111,1806.6,1806.4,5.53582142]
[1745600772383,6.29911111,1806.6,1806.5,5.53556601]
[1745600772940,6.29911111,1806.6,1806.4,6.28702142]
[1745600772941,6.29911111,1806.6,1806.4,5.53569267]
[1745600773451,6.29911111,1806.6,1806.5,5.53556601]
[1745600774292,0.18911111,1806.6,1806.5,7.46790697]
[1745600774495,1e-08,1806.6,1806.5,15.52224901]
[1745600774642,0.1,1806.9,1806.8,5.53464688]
[1745600774844,0.1,1806.9,1806.8,8.53464688]
[1745600775161,0.1,1806.9,1806.8,9.90728632]
[1745600775359,0.1,1806.9,1806.8,11.5119897]
[1745600775680,0.1,1806.9,1806.8,10.9619897]
[1745600775845,0.1,1806.9,1806.8,11.54114897]
[1745600776045,0.1,1806.9,1806.8,7.9619897]
[1745600776249,0.1,1806.9,1806.8,6.30194688]
[1745600777276,0.1,1806.9,1806.8,6.35728466]
[1745600777490,0.1,1806.9,1806.8,6.30194688]
[1745600777944,0.1,1806.9,1806.8,9.85194688]
[1745600778343,0.1,1806.9,1806.8,6.30194688]
[1745600778542,0.1,1806.9,1806.8,7.8131406]
[1745600779091,0.1,1806.9,1806.7,5.53482337]
[1745600779295,0.1,1806.9,1806.7,10.53272308]
[1745600779501,0.1,1806.9,1806.7,4.998]
[1745600779655,0.14769788,1806.8,1806.6,0.8287]
[1745600779996,0.14769788,1806.8,1806.5,11.69839603]
[1745600780147,0.5831,1806.9,1806.5,11.69839603]
[1745600780462,0.14731928,1806.8,1806.5,4.998]
[1745600780657,0.14731928,1806.8,1806.4,5.53567769]
[1745600780876,6.25731928,1806.8,1806.3,21.601]
[1745600781076,0.4831,1806.7,1806.3,4.998]
[1745600781245,6.25731928,1806.8,1806.6,5.53511469]
[1745600781463,6.11,1806.8,1806.6,5.53511469]
[1745600781995,6.11,1806.8,1806.5,5.53556601]
[1745600782279,0.145615,1806.7,1806.5,11.07074558]
[1745600782484,0.145615,1806.7,1806.5,6.72526727]
[1745600782682,0.145615,1806.7,1806.5,5.53532271]
[1745600782883,6.11,1806.8,1806.3,10.53403661]
[1745600783057,6.11,1806.8,1806.4,5.53584856]
[1745600783262,6.11,1806.8,1806.3,4.998]
[1745600783263,0.14543949,1806.7,1806.3,4.998]
[1745600783586,0.4831,1806.6,1806.3,4.998]
[1745600783794,0.4831,1806.6,1806.1,5.53666224]
[1745600784097,0.14535392,1806.5,1806.1,7.2228081]
[1745600784562,0.14535392,1806.5,1806.2,5.59168332]
[1745600784747,6.5931,1806.6,1806.3,5.53598262]
[1745600785182,0.14558108,1806.5,1806.3,5.53598262]
[1745600785954,0.14558108,1806.5,1806.2,5.53632354]
[1745600786381,6.5931,1806.6,1806.1,7.2228349]
[1745600786852,0.14299336,1806.5,1806.4,6.29737245]
[1745600787186,6.11,1806.6,1806.5,5.53556601]
[1745600787688,6.25307741,1806.6,1806.4,6.29734747]
[1745600788050,6.11,1806.7,1806.2,6.25853723]
[1745600788257,6.76931,1806.7,1806.1,2.47352249]
[1745600788451,0.14301031,1806.6,1806.1,2.47352249]
[1745600788694,0.4831,1806.5,1806.1,8.01009809]
[1745600788902,0.4831,1806.5,1806.2,5.53647077]
[1745600789201,0.4831,1806.5,1806.3,5.53604049]
[1745600789359,0.4831,1806.5,1806.2,5.53628481]
[1745600789563,0.4831,1806.5,1806.2,6.89092761]
[1745600789763,0.4831,1806.5,1806.3,5.53608973]
[1745600789993,0.4831,1806.5,1806.2,6.89092761]
[1745600790298,0.4831,1806.5,1806.3,5.53599524]
[1745600790461,0.4831,1806.5,1806.2,6.8909373]
[1745600791160,0.4831,1806.5,1806.2,1.3546428]
[1745600791361,0.4831,1806.5,1805.9,6.35438526]
[1745600791562,6.11,1806.4,1806.0,5.53702503]
[1745600791798,6.25297639,1806.4,1806.1,5.53677423]
[1745600792121,6.11,1806.3,1805.9,0.8172]
[1745600792443,6.7360491,1806.3,1805.7,1.87752178]
[1745600792617,6.7360491,1806.3,1805.9,5.53710588]
[1745600792766,6.2529491,1806.3,1806.2,5.53648543]
[1745600794073,6.11,1806.3,1806.2,6.34918543]
[1745600794486,6.11,1806.3,1806.1,5.53657632]
[1745600794658,6.24110365,1806.3,1806.1,5.53657632]
[1745600795297,6.24110365,1806.3,1806.0,6.36541059]
[1745600795495,6.24110365,1806.3,1806.0,5.55271059]
[1745600795670,6.24110365,1806.3,1805.7,1.10762178]
[1745600795874,6.24110365,1806.3,1805.8,5.53742607]
[1745600796465,0.4831,1806.1,1805.1,0.7916]
[1745600796661,0.4831,1805.9,1805.4,5.53875832]
[1745600796861,0.13073266,1805.8,1805.5,0.55387583]
[1745600797061,6.24073266,1805.8,1805.3,5.53895732]
[1745600797275,6.24073266,1805.8,1805.1,6.33137524]
[1745600797276,6.24073266,1805.8,1805.5,5.53861681]
[1745600798777,0.4831,1805.7,1805.3,5.53905923]
[1745600798972,0.4831,1805.7,1805.2,4.999]
[1745600798973,0.4831,1805.7,1805.5,5.53860657]
[1745600799265,6.11,1805.8,1805.5,6.64616671]
[1745600799468,0.13065372,1805.7,1805.5,5.53834504]
[1745600799665,6.11,1805.8,1805.5,11.07671495]
[1745600799878,6.11,1805.8,1805.5,5.53834504]
[1745600800279,6.11,1805.8,1805.6,5.53830628]
[1745600801002,6.11,1805.8,1805.6,5.5381228]
[1745600801312,6.11,1805.8,1805.7,5.53801849]
[1745600801522,0.4831,1806.1,1805.9,5.53723183]
[1745600801828,6.11,1806.1,1805.9,5.53731234]
[1745600802123,0.130684,1806.0,1805.8,11.07512325]
[1745600802280,0.130684,1806.0,1805.8,12.18263558]
[1745600802809,0.130684,1806.0,1805.9,5.53740517]
[1745600803315,6.11,1806.1,1805.9,11.07481034]
[1745600803516,6.11,1806.4,1806.0,5.85653991]
[1745600803820,6.11,1806.4,1806.3,6.36147892]
[1745600804019,0.4831,1806.8,1806.3,6.36147892]
[1745600804020,6.5931,1806.8,1806.5,5.53528815]
[1745600804180,6.5931,1806.8,1806.5,5.53530192]
[1745600804380,0.11999837,1806.7,1806.5,11.07063263]
[1745600804907,0.11999837,1806.7,1806.5,5.53530192]
[1745600805211,0.11999837,1806.7,1806.5,5.53536516]
[1745600805416,0.11999837,1806.7,1806.5,6.64247102]
[1745600805634,0.11999837,1806.7,1806.3,5.53598291]
[1745600805803,0.11999837,1806.7,1806.2,5.53624767]
[1745600805980,0.11999837,1806.7,1806.1,6.8751726]
[1745600806316,6.11,1806.6,1806.1,1.33855399]
[1745600806522,6.11,1806.6,1806.3,5.5361137]
[1745600806814,0.60217287,1806.5,1806.1,5.53659779]
[1745600807012,0.60217287,1806.5,1806.2,5.53632284]
[1745600807214,0.60217287,1806.5,1806.0,7.999]
[1745600807393,0.60217287,1806.5,1806.3,5.53591515]
[1745600807594,0.60217287,1806.5,1806.3,5.53597639]
[1745600808003,0.60217287,1806.5,1806.4,5.53587245]
[1745600808004,0.11907287,1806.5,1806.4,5.53587245]
[1745600808214,0.11907287,1806.5,1806.3,6.08957403]
[1745600808215,0.11907287,1806.5,1806.3,6.08957091]
[1745600808419,0.11907287,1806.5,1806.4,5.53587245]
[1745600808985,0.11907287,1806.5,1806.3,11.62570643]
[1745600809218,0.11907287,1806.5,1806.4,5.53587245]
[1745600809719,0.11907287,1806.5,1806.3,6.08958096]
[1745600810124,0.11907287,1806.5,1806.4,5.53587245]
[1745600810331,0.11907287,1806.5,1806.3,6.08958096]
[1745600810496,0.11907287,1806.5,1806.4,5.53587245]
[1745600810695,0.11907287,1806.5,1806.3,5.53598332]
[1745600810919,0.11907287,1806.5,1806.4,5.53587245]
[1745600811807,0.11907287,1806.5,1806.3,6.08976315]
[1745600812010,0.11907287,1806.5,1806.3,6.08958752]
[1745600812224,0.11907287,1806.5,1806.4,5.53587245]
[1745600813597,0.11907287,1806.5,1806.3,6.08958752]
[1745600813598,0.11907287,1806.5,1806.3,6.08956784]
[1745600814368,0.11907287,1806.5,1806.4,12.2291664]
[1745600814629,6.6931,1806.9,1806.7,5.53494371]
[1745600814791,0.11868577,1806.8,1806.7,5.53494371]
[1745600815412,0.11868577,1806.8,1806.6,5.53507878]
[1745600816260,0.11868577,1806.8,1806.7,5.53495322]
[1745600816449,6.6931,1806.9,1806.6,5.53509132]
[1745600816619,0.11868577,1806.8,1806.6,5.53509132]
[1745600816818,6.6931,1806.9,1806.6,5.53509132]
[1745600817019,0.11868577,1806.8,1806.7,5.5348651]
[1745600817341,6.6931,1806.9,1806.6,5.53505571]
[1745600817647,0.11868577,1806.8,1806.6,5.53505571]
[1745600817858,6.6931,1806.9,1806.4,0.57889113]
[1745600818158,0.78799577,1806.8,1806.4,5.5358322]
[1745600818356,0.78799577,1806.8,1806.3,5.53606352]
[1745600818523,6.5931,1806.7,1806.3,5.53599516]
[1745600818722,6.5931,1806.7,1806.4,5.53586903]
[1745600818924,0.12029335,1806.6,1806.2,5.53627633]
[1745600819261,0.12029335,1806.6,1806.3,5.53600687]
[1745600819417,0.12029335,1806.6,1806.3,11.07196356]
[1745600819619,0.12029335,1806.6,1806.4,5.53566738]
[1745600820240,6.11,1806.5,1806.1,4.999]
[1745600820445,6.11,1806.5,1806.2,5.53622442]
[1745600820446,0.12014079,1806.4,1806.2,5.53622442]
[1745600820637,0.12014079,1806.4,1806.2,11.0725054]
[1745600820835,0.12014079,1806.4,1806.2,5.53622442]
[1745600821036,0.4831,1806.3,1805.5,0.8169]
[1745600821355,0.12008364,1806.2,1805.8,5.5375102]
[1745600821568,0.12008364,1806.2,1805.9,5.53740445]
[1745600821735,0.12008364,1806.2,1805.8,5.5375102]
[1745600821736,0.4831,1806.3,1805.8,5.5375102]
[1745600821935,0.4831,1806.3,1805.8,0.57889113]
[1745600821936,0.89371141,1806.3,1805.8,0.57889113]
[1745600822266,0.1198285,1806.2,1806.0,5.53689356]
[1745600822423,0.4831,1806.3,1806.1,5.53679198]
[1745600822858,0.4831,1806.3,1806.2,5.53648543]
[1745600823179,0.4831,1806.6,1806.2,11.07277115]
[1745600823386,0.4831,1806.6,1806.3,5.53617664]
[1745600823551,0.11779646,1806.5,1806.2,5.53628572]
[1745600824287,0.11779646,1806.5,1806.4,5.53587245]
[1745600824473,3.4831,1806.6,1806.4,5.53587245]
[1745600824680,0.11884061,1806.5,1806.4,5.53565985]
[1745600824982,0.11884061,1806.5,1806.3,5.53604973]
[1745600825162,0.11884061,1806.5,1806.4,5.53587245]
[1745600826303,6.21,1806.9,1806.6,5.53500986]
[1745600826460,6.21,1806.9,1806.8,5.53464688]
[1745600826971,6.21,1806.9,1806.7,5.534832]
[1745600827291,6.21,1806.9,1806.8,5.53464688]
[1745600827454,6.21,1806.9,1806.8,6.64159477]
[1745600828285,6.21,1806.9,1806.8,5.53464688]
[1745600829384,6.21,1806.9,1806.7,5.534832]
[1745600829688,6.21,1806.9,1806.7,5.5347666]
[1745600829866,6.21,1806.9,1806.7,5.53473503]
[1745600830280,6.21,1806.9,1806.5,0.8242]
[1745600830616,6.71317467,1806.8,1806.5,5.53540728]
[1745600831420,6.71317467,1806.8,1806.5,11.07078273]
[1745600831585,6.71317467,1806.8,1806.5,5.53537545]
[1745600831987,6.71317467,1806.8,1806.6,5.53523356]
[1745600832315,6.71317467,1806.8,1806.4,11.07140254]
[1745600832519,6.71317467,1806.8,1806.5,5.53532227]
[1745600833017,6.71317467,1806.8,1806.5,11.07066507]
[1745600833220,6.71317467,1806.8,1806.6,5.53525279]